fUSD/lending_fUSD_20250916
["ID","MTS","AMOUNT","RATE_DAILY","PERIOD"]
[385856697,1758061833032,-116945.35671269,0.0002,2]
[385856701,1758061833061,-500.0,0.00019862,2]
[385856704,1758061833071,-500.0,0.00019862,2]
[385856705,1758061833081,-3761.17950034,0.0002,2]
[385856904,1758061838277,-420.12235705,0.00019862,2]
[385856905,1758061838367,-79.87764295,0.00019862,2]
[385856906,1758061838379,-498.77235705,0.00019862,2]
[385856907,1758061838443,-1.22764295,0.00019862,2]
[385856908,1758061838453,-500.0,0.00019862,2]
[385856909,1758061838463,-500.0,0.00019862,2]
[385856910,1758061838473,-500.0,0.00019862,2]
[385856911,1758061838483,-500.0,0.00019862,2]
[385856912,1758061838492,-500.0,0.00019862,2]
[385856913,1758061838502,-500.0,0.00019862,2]
[385856914,1758061838511,-500.0,0.00019862,2]
[385856915,1758061838520,-500.0,0.00019862,2]
[385856916,1758061838530,-238.63474931,0.00019862,2]
[385856917,1758061838539,-500.0,0.00019862,2]
[385856918,1758061838548,-500.0,0.00019862,2]
[385856919,1758061838557,-500.0,0.00019862,2]
[385856920,1758061838567,-500.0,0.00019862,2]
[385856921,1758061838577,-8614361.48802999,0.0002,2]
[385856922,1758061838587,-10740.78341472,0.0002,2]
[385856923,1758061838596,-1508.58908404,0.0002,2]
[385856924,1758061838605,-6026.8087251,0.0002,2]
[385856925,1758061838615,-25184.24950517,0.0002,2]
[385856926,1758061838623,-6446343.21514662,0.0002,2]
[385856927,1758061838642,-130541.87155762,0.0002,2]
[385857073,1758061840172,-39451.69648494,0.0002,2]
[385857078,1758061840221,-6683136.50306531,0.0002,2]
[385857098,1758061840450,-2063.01326639,0.0002,2]
[385857100,1758061840460,-356.14450164,0.0002,2]
[385857170,1758061843206,-797.80805475,0.0001999,2]
[385857171,1758061843214,-797.80805475,0.0001999,2]
[385857172,1758061843225,-797.80805475,0.0001999,2]
[385857173,1758061843235,-21013.57583575,0.0002,2]
[385857186,1758061846122,-20947.15490665,0.0002,2]
[385857187,1758061846133,-856.2545012,0.0002,2]
[385857188,1758061846145,-1083.9834821,0.0002,2]
[385857295,1758061894279,2153.858,0.00019599,2]
[385857296,1758061894366,182.73211292,0.00019599,2]
[385857299,1758062089098,1280.943,0.000197,2]
[385857300,1758062098798,-499.53223119,0.000198,2]
[385857302,1758062104856,-300.0,0.00019799,2]
[385857303,1758062104888,-337.89881788,0.00019799,2]
[385857304,1758062107866,-167.06,0.00019799,2]
[385857305,1758062110912,-253.12395376,0.00019799,2]
[385857306,1758062112490,-400.0,0.00019799,2]
[385857307,1758062115959,-41.91722836,0.00019799,2]
[385857308,1758062115982,-558.08277164,0.000198,2]
[385857309,1758062119374,-400.0,0.000198,2]
[385857310,1758062120368,-15351.86798554,0.000198,2]
[385857311,1758062120391,-249.0,0.00019808,2]
[385857312,1758062120418,-500.0,0.00019808,2]
[385857313,1758062120445,-500.0,0.00019808,2]
[385857314,1758062120479,-500.0,0.00019808,2]
[385857315,1758062120511,-500.0,0.00019808,2]
[385857316,1758062120540,-500.0,0.00019808,2]
[385857317,1758062120569,-500.0,0.00019808,2]
[385857318,1758062120598,-340.68726803,0.00019808,2]
[385857319,1758062120622,-1200.0,0.00019809,2]
[385857320,1758062120650,-589.79903282,0.00019809,2]
[385857321,1758062120675,-245.56039274,0.00019809,2]
[385857322,1758062120699,-288.04013055,0.00019809,2]
[385857323,1758062120725,-78735.04519032,0.0001981,2]
[385857324,1758062155519,682.51,0.00019106,2]
[385857325,1758062219825,250.0,0.00019153,2]
[385857328,1758062245397,2620.53726807,0.00019113,2]
[385857329,1758062245422,6285.39273193,0.00019113,2]
[385857330,1758062256962,300.0,0.000193,7]
[385857331,1758062258661,-223.43802312,0.000198,2]
[385857332,1758062259049,600.0,0.000194,7]
[385857333,1758062260149,-151.0,0.000198,2]
[385857334,1758062261200,900.0,0.000195,7]
[385857335,1758062261677,1679.60726807,0.00019065,2]
[385857336,1758062261702,9765.0,0.00019065,2]
[385857337,1758062261724,5371.5114662,0.00019065,2]
[385857338,1758062261746,5371.5114662,0.00019065,2]
[385857339,1758062261769,5371.5114662,0.00019065,2]
[385857340,1758062261794,5371.5114662,0.00019065,2]
[385857341,1758062261816,5371.5114662,0.00019065,2]
[385857342,1758062261841,5371.5114662,0.00019065,2]
[385857343,1758062261863,4140.85393473,0.00019065,2]
[385857344,1758062261993,-176.23456479,0.000198,2]
[385857345,1758062263272,223.76543521,0.000196,7]
[385857346,1758062265064,-716.429419,0.000196,7]
[385857347,1758062268472,-242.268495,0.000196,7]
[385857348,1758062271188,-17.53665079,0.000196,7]
[385857349,1758062271212,-382.46334921,0.000197,7]
[385857350,1758062273295,-276.56197688,0.000197,7]
[385857351,1758062277098,-940.97467391,0.000197,7]
[385857352,1758062277135,-300.0,0.000198,7]
[385857353,1758062277169,-371.18747423,0.00019809,2]
[385857354,1758062277199,-280.0,0.00019809,2]
[385857355,1758062282156,1230.65753147,0.00019268,2]
[385857356,1758062282180,2800.69246853,0.00019268,2]
[385857357,1758062294603,150.0,0.00019111,7]
[385857358,1758062363521,2420.81899767,0.00019068,2]
[385857359,1758062363542,5371.5114662,0.00019068,2]
[385857360,1758062363563,5371.5114662,0.00019068,2]
[385857361,1758062363586,7551.48806993,0.00019068,2]
[385857362,1758062393971,-400.0,0.000197,2]
[385857363,1758062395826,-214.62,0.000197,2]
[385857364,1758062414074,1370.65,0.00018998,2]
[385857367,1758062440039,5307.56,0.00018998,2]
[385857368,1758062459404,223.2,0.00018998,2]
[385857369,1758062460048,223.2,0.00026122,120]
[385857370,1758062460740,223.2,0.00028497,120]
[385857371,1758062508417,167.29,0.00018966,2]
[385857372,1758062542580,379.81193007,0.00018269,2]
[385857373,1758062542600,464.03549034,0.00018269,2]
[385857374,1758062542897,843.84742041,0.00018603,2]
[385857375,1758062543696,843.84742041,0.00018803,2]
[385857376,1758062544033,843.84742041,0.00019071,2]
[385857377,1758062548000,-360.371505,0.00019337,2]
[385857378,1758062552377,-400.0,0.00019337,2]
[385857379,1758062556603,-83.47591541,0.00019337,2]
[385857380,1758062556628,-316.52408459,0.00019662,2]
[385857381,1758062558798,-527.32333582,0.00019662,2]
[385857382,1758062560413,666.0,0.00019084,3]
[385857383,1758062605214,4471.54,0.00019174,2]
[385857384,1758062621839,200.0,0.00019174,2]
[385857387,1758062666180,250.0,0.00015,2]
[385857388,1758062667276,300.0,0.00017,2]
[385857389,1758062672943,843.84742041,0.00017922,2]
[385857390,1758062673279,843.84742041,0.00018183,2]
[385857391,1758062673616,843.84742041,0.00018518,2]
[385857392,1758062674150,843.84742041,0.00018729,2]
[385857393,1758062674504,843.84742041,0.00018989,2]
[385857394,1758062675619,-843.84742041,0.00019361,2]
[385857395,1758062676582,200.0,0.00019084,2]
[385857396,1758062698663,160.62,0.00019087,2]
[385857397,1758062713620,150.0,0.00018,2]
[385857398,1758062713670,150.0,0.00018667,2]
[385857399,1758062713740,150.0,0.00019333,4]
[385857400,1758062713896,150.0,0.00018,2]
[385857401,1758062714001,150.0,0.00018,2]
[385857402,1758062714073,150.0,0.00018,2]
[385857403,1758062714129,150.0,0.000185,2]
[385857404,1758062714201,150.0,0.00019,2]
[385857405,1758062715456,-150.0,0.000195,4]
[385857406,1758062719462,153.30619736,0.00018,2]
[385857407,1758062719644,150.0,0.00018,2]
[385857408,1758062719678,33.71894902,0.00018,2]
[385857409,1758062719702,116.28105098,0.00018,2]
[385857410,1758062722974,150.0,0.00018,2]
[385857411,1758062724390,150.0,0.00018,2]
[385857412,1758062729794,150.0,0.00018,2]
[385857413,1758062729980,150.0,0.00018,2]
[385857414,1758062730046,150.0,0.00018,2]
[385857415,1758062734427,150.0,0.00018,2]
[385857416,1758062734532,150.0,0.00018,2]
[385857417,1758062735644,150.0,0.00018,2]
[385857418,1758062736640,150.0,0.00018,2]
[385857419,1758062736703,150.0,0.00018667,2]
[385857420,1758062736782,150.0,0.00019333,4]
[385857421,1758062736942,702.08,0.00018955,2]
[385857422,1758062761816,3588.95,0.00018929,2]
[385857423,1758062764870,-288.10284315,0.00019522,2]
[385857424,1758062767382,-555.74457726,0.00019522,2]
[385857425,1758062790628,1000.0,0.0001891,2]
[385857426,1758062795394,843.8474204,0.00018945,2]
[385857427,1758062795854,-769.38673586,0.00019363,2]
[385857428,1758062798296,-74.46068454,0.00019363,2]
[385857429,1758062798324,-175.53931546,0.00019543,2]
[385857430,1758062800357,-400.0,0.00019543,2]
[385857431,1758062802922,-268.30810494,0.00019543,2]
[385857432,1758062802954,-288.10284315,0.000196,2]
[385857435,1758062828478,232.51,9.445e-05,2]
[385857436,1758062828716,232.51,9.942e-05,2]
[385857437,1758062828911,232.51,0.00010439,2]
[385857438,1758062829141,232.51,0.00010936,2]
[385857439,1758062829404,232.51,0.00011433,2]
[385857440,1758062829729,232.51,0.00011931,2]
[385857441,1758062830027,232.51,0.00012428,2]
[385857442,1758062830248,232.51,0.00012925,2]
[385857443,1758062830483,232.51,0.00013422,2]
[385857444,1758062830683,232.51,0.00013919,2]
[385857445,1758062830894,232.51,0.00014416,2]
[385857446,1758062831116,232.51,0.00014913,2]
[385857447,1758062831521,232.51,0.0001541,2]
[385857448,1758062831934,232.51,0.00015907,2]
[385857449,1758062832151,232.51,0.00016404,2]
[385857450,1758062832365,232.51,0.00016901,2]
[385857451,1758062832585,232.51,0.00017399,2]
[385857452,1758062832809,232.51,0.00017896,2]
[385857453,1758062833135,232.51,0.00018393,2]
[385857454,1758062833578,232.51,0.0001889,2]
[385857455,1758062869930,-400.0,0.00019788,2]
[385857456,1758062873939,-167.06,0.00019788,2]
[385857457,1758062876410,-197.76534795,0.00019788,2]
[385857459,1758062879317,-400.0,0.00019788,2]
[385857460,1758062881704,-400.0,0.00019788,2]
[385857461,1758062883898,-500.0,0.00019788,2]
[385857462,1758062886796,-400.0,0.00019788,2]
[385857463,1758062890825,-218.28681307,0.00019788,2]
[385857464,1758062894554,-400.0,0.00019787,2]
[385857465,1758062896059,-130.64930479,0.00019787,2]
[385857466,1758062896084,-395.04757033,0.00019788,2]
[385857467,1758062897584,-450.0,0.00019788,2]
[385857468,1758062899147,-400.0,0.00019788,2]
[385857469,1758062902684,-219.53274672,0.00019788,2]
[385857470,1758062904734,-4820.84359209,0.00019788,2]
[385857471,1758062907355,-478.79608974,0.00019788,2]
[385857472,1758062911936,-908.5026514,0.00019788,2]
[385857473,1758062914371,-412.85932297,0.00019787,2]
[385857474,1758062914396,-30.34291133,0.00019787,2]
[385857475,1758062916262,803.22,0.00018888,2]
[385857476,1758062916508,-141.54936359,0.00019787,2]
[385857477,1758062916531,-201.62809139,0.00019787,2]
[385857478,1758062916554,-29.92549139,0.00019788,2]
[385857479,1758062920620,-500.0,0.00019574,2]
[385857480,1758062922571,-157.731505,0.00019574,2]
[385857481,1758062924011,229.22,0.0001889,2]
[385857482,1758062926701,-186.1159154,0.00019574,2]
[385857483,1758062926727,-183.98337253,0.00019787,2]
[385857484,1758062928556,-280.35182721,0.00019787,2]
[385857485,1758062931636,-35.66480026,0.00019787,2]
[385857486,1758062931661,-206.60369474,0.00019787,2]
[385857487,1758062934002,-109.70148593,0.00019787,2]
[385857488,1758062934026,-61.29001907,0.00019787,2]
[385857489,1758062936614,-400.0,0.00019787,2]
[385857490,1758062938445,-38.70998093,0.00019787,2]
[385857491,1758062938481,-157.731505,0.00019787,2]
[385857492,1758062938515,-123.19226748,0.00019788,2]
[385857493,1758062942553,-261.731505,0.00019787,2]
[385857494,1758062944401,-238.268495,0.00019787,2]
[385857495,1758062944430,-127.57343955,0.00019787,2]
[385857496,1758062948360,-207.96178671,0.00019787,2]
[385857497,1758062952385,-164.46477374,0.00019787,2]
[385857498,1758062952412,-335.53522626,0.00019787,2]
[385857499,1758062957252,-128.17588888,0.00019787,2]
[385857500,1758062957275,-150.0,0.00019787,2]
[385857501,1758062957297,-181.56310724,0.00019787,2]
[385857502,1758062958782,-34.27882731,0.00019787,2]
[385857503,1758062958812,-382.86318045,0.00019787,2]
[385857504,1758062960814,-117.13681955,0.00019787,2]
[385857505,1758062960842,-211.87167545,0.00019787,2]
[385857506,1758062963193,-256.7977657,0.00019787,2]
[385857507,1758062964610,-130.92456263,0.00019787,2]
[385857508,1758062964637,-214.69238164,0.00019788,2]
[385857509,1758062964847,215.27,0.00019041,2]
[385857510,1758062968033,-153.20236977,0.00019788,2]
[385857511,1758062970741,-346.79763023,0.00019788,2]
[385857512,1758062974260,-153.20236977,0.00019787,2]
[385857513,1758062975815,-263.93963799,0.00019787,2]
[385857514,1758062975842,-236.06036201,0.00019787,2]
[385857515,1758062977266,-229.66755693,0.00019787,2]
[385857516,1758062982376,-34.27208106,0.00019787,2]
[385857517,1758062982403,-254.12787228,0.00019787,2]
[385857518,1758062987511,-160.61588234,0.000197,2]
[385857519,1758062991235,-257.731505,0.000197,2]
[385857520,1758062994797,-108.45261266,0.000197,2]
[385857521,1758062994824,-135.80024149,0.00019787,2]
[385857522,1758062994849,-66.96028717,0.00019787,2]
[385857523,1758062999887,-433.03971283,0.00019787,2]
[385857524,1758062999913,-25.74664287,0.00019787,2]
[385857525,1758063000266,-131.28594869,0.00019787,2]
[385857526,1758063000299,-238.22467514,0.00019787,2]
[385857527,1758063001362,-261.77532486,0.00019787,2]
[385857528,1758063001388,-112.10240596,0.00019787,2]
[385857529,1758063004859,-300.0,0.00019786,2]
[385857530,1758063004883,-136.51285569,0.00019786,2]
[385857531,1758063006925,-163.48714431,0.00019786,2]
[385857532,1758063006949,-333.62847835,0.00019786,2]
[385857533,1758063007018,1200.93152862,0.00018889,2]
[385857534,1758063007041,2863.55847138,0.00018889,2]
[385857535,1758063009506,-393.2022343,0.00019786,2]
[385857536,1758063011899,-162.41755456,0.00019786,2]
[385857539,1758063016556,-310.75173279,0.00019786,2]
[385857540,1758063016582,-116.61330184,0.00019787,2]
[385857541,1758063018530,-271.2842922,0.00019787,2]
[385857542,1758063018560,-229.01532238,0.00019787,2]
[385857543,1758063023408,-62.2690083,0.00019787,2]
[385857544,1758063023432,-354.87299946,0.00019787,2]
[385857545,1758063025879,-15.12700054,0.00019787,2]
[385857546,1758063025906,-484.87299946,0.00019787,2]
[385857547,1758063029927,-15.12700054,0.00019787,2]
[385857548,1758063029953,-143.35334558,0.00019787,2]
[385857552,1758063032458,-4791.78318228,0.00019788,2]
[385857553,1758063032486,-615.37806947,0.00019788,2]
[385857556,1758063032682,-500.0,0.00019788,2]
[385857557,1758063032693,-10521.03844691,0.00019788,2]
[385857558,1758063032704,-22120.68411443,0.00019788,2]
[385857559,1758063032714,-1200.0,0.00019807,2]
[385857560,1758063032723,-151.0,0.00019809,2]
[385857561,1758063032736,-1000.0,0.00019809,2]
[385857562,1758063032746,-1000.0,0.00019809,2]
[385857563,1758063032755,-49108.24251494,0.0001981,2]
[385857564,1758063032765,-1783.677,0.0001981,2]
[385857565,1758063032775,-150.0,0.00019851,2]
[385857566,1758063032785,-13407.5498515,0.00019856,2]
[385857567,1758063032794,-8635.9771596,0.00019859,2]
[385857606,1758063033120,-16637.01911826,0.00019873,2]
[385857607,1758063033130,-647.3,0.00019875,2]
[385857608,1758063033140,-16637.0191182,0.00019876,2]
[385857609,1758063033150,-16637.0191182,0.00019879,2]
[385857610,1758063033160,-16637.0191182,0.00019882,2]
[385857611,1758063033170,-647.3,0.00019884,2]
[385857612,1758063033180,-16637.0191182,0.00019885,2]
[385857613,1758063033190,-4993.22301971,0.00019888,2]
[385857614,1758063033235,-577.36503463,0.00019786,2]
[385857615,1758063033247,-500.0,0.00019786,2]
[385857616,1758063033257,-500.0,0.00019786,2]
[385857617,1758063033268,-11643.79609849,0.00019888,2]
[385857618,1758063033277,-647.3,0.00019889,2]
[385857619,1758063033286,-16637.0191182,0.00019891,2]
[385857620,1758063033296,-16637.0191182,0.00019894,2]
[385857621,1758063033306,-16637.0191182,0.00019897,2]
[385857622,1758063033317,-165.7575207,0.00019897,2]
[385857623,1758063033329,-5328.9666435,0.00019899,2]
[385857624,1758063033338,-5328.96664348,0.00019899,2]
[385857625,1758063033348,-5328.96664348,0.00019899,2]
[385857626,1758063033357,-5328.96664348,0.00019899,2]
[385857627,1758063033367,-5328.96664348,0.00019899,2]
[385857628,1758063033377,-5328.96664348,0.000199,2]
[385857629,1758063033387,-5328.96664348,0.000199,2]
[385857630,1758063033397,-5328.96664348,0.000199,2]
[385857631,1758063033406,-5328.96664348,0.000199,2]
[385857632,1758063033416,-161.9593498,0.000199,2]
[385857633,1758063033425,-4859.62370997,0.000199,2]
[385857634,1758063033434,-16637.0191182,0.000199,2]
[385857635,1758063033444,-5328.96664348,0.000199,2]
[385857636,1758063033453,-3019.27784382,0.000199,2]
[385857637,1758063033462,-210.28368122,0.000199,2]
[385857638,1758063033472,-5348.8879136,0.000199,2]
[385857639,1758063033481,-191.39919682,0.000199,2]
[385857640,1758063033491,-843.8474204,0.00019957,2]
[385857641,1758063033500,-647.3,0.00019963,2]
[385857642,1758063033509,-500.0,0.00019973,2]
[385857643,1758063033518,-504.42816841,0.00019973,2]
[385857644,1758063033528,-500.0,0.00019973,2]
[385857645,1758063033538,-500.0,0.00019973,2]
[385857646,1758063033548,-500.0,0.00019973,2]
[385857647,1758063033557,-502.22681828,0.00019973,2]
[385857648,1758063033569,-500.0,0.00019973,2]
[385857649,1758063033578,-500.48338357,0.00019973,2]
[385857650,1758063033587,-500.0,0.00019973,2]
[385857651,1758063033597,-233.40776881,0.00019973,2]
[385857652,1758063033607,-501.72538216,0.00019973,2]
[385857653,1758063033616,-500.0,0.00019973,2]
[385857654,1758063033625,-368.14811414,0.00019973,2]
[385857655,1758063033635,-161.33278727,0.0001998,2]
[385857656,1758063033644,-500.0,0.0001998,2]
[385857657,1758063033654,-200.0,0.00019988,2]
[385857658,1758063033663,-500.0,0.00019988,2]
[385857659,1758063033673,-500.0,0.00019988,2]
[385857660,1758063033683,-500.0,0.00019988,2]
[385857661,1758063033692,-151.0,0.00019988,2]
[385857662,1758063033701,-500.0,0.00019988,2]
[385857663,1758063033711,-151.0,0.00019988,2]
[385857664,1758063033720,-500.0,0.00019988,2]
[385857665,1758063033730,-151.0,0.00019988,2]
[385857666,1758063033741,-500.0,0.00019988,2]
[385857667,1758063033751,-151.0,0.00019988,2]
[385857668,1758063033761,-500.0,0.00019988,2]
[385857669,1758063033770,-151.0,0.00019988,2]
[385857670,1758063033779,-151.0,0.00019988,2]
[385857671,1758063033796,-500.0,0.00019988,2]
[385857672,1758063033808,-151.0,0.00019988,2]
[385857673,1758063033817,-500.0,0.00019988,2]
[385857674,1758063033827,-151.0,0.00019988,2]
[385857675,1758063033837,-500.0,0.00019988,2]
[385857676,1758063033846,-500.0,0.00019988,2]
[385857677,1758063033855,-151.0,0.00019988,2]
[385857678,1758063033865,-500.0,0.00019988,2]
[385857679,1758063033875,-151.0,0.00019988,2]
[385857680,1758063033885,-151.0,0.00019988,2]
[385857681,1758063033894,-151.0,0.00019988,2]
[385857682,1758063033903,-200.0,0.00019988,2]
[385857683,1758063033913,-151.0,0.00019988,2]
[385857684,1758063033922,-151.0,0.00019988,2]
[385857685,1758063033932,-200.0,0.00019988,2]
[385857686,1758063033941,-151.0,0.00019988,2]
[385857687,1758063033950,-151.0,0.00019988,2]
[385857688,1758063033960,-151.0,0.00019988,2]
[385857689,1758063033969,-151.0,0.00019988,2]
[385857690,1758063033979,-151.0,0.00019988,2]
[385857691,1758063033988,-151.0,0.00019988,2]
[385857692,1758063033998,-151.0,0.00019988,2]
[385857693,1758063034007,-151.0,0.00019988,2]
[385857694,1758063034017,-151.0,0.00019988,2]
[385857695,1758063034026,-151.0,0.00019988,2]
[385857696,1758063034036,-151.0,0.00019988,2]
[385857697,1758063034045,-151.0,0.00019988,2]
[385857698,1758063034055,-151.0,0.00019988,2]
[385857699,1758063034064,-500.0,0.00019988,2]
[385857700,1758063034074,-151.0,0.00019988,2]
[385857701,1758063034083,-151.0,0.00019988,2]
[385857702,1758063034092,-151.0,0.00019988,2]
[385857703,1758063034102,-500.0,0.00019988,2]
[385857704,1758063034111,-151.0,0.00019988,2]
[385857705,1758063034123,-151.0,0.00019988,2]
[385857706,1758063034132,-151.0,0.00019988,2]
[385857707,1758063034142,-151.0,0.00019988,2]
[385857708,1758063034151,-500.0,0.00019988,2]
[385857709,1758063034161,-151.0,0.00019988,2]
[385857710,1758063034170,-151.0,0.00019988,2]
[385857711,1758063034179,-500.0,0.00019988,2]
[385857712,1758063034189,-151.0,0.00019988,2]
[385857713,1758063034199,-500.0,0.00019988,2]
[385857714,1758063034209,-151.0,0.00019988,2]
[385857715,1758063034218,-151.0,0.00019988,2]
[385857716,1758063034227,-500.0,0.00019988,2]
[385857717,1758063034237,-151.0,0.00019988,2]
[385857718,1758063034246,-151.0,0.00019988,2]
[385857719,1758063034256,-500.0,0.00019988,2]
[385857720,1758063034266,-151.0,0.00019988,2]
[385857721,1758063034276,-151.0,0.00019988,2]
[385857722,1758063034286,-500.0,0.00019988,2]
[385857723,1758063034296,-151.0,0.00019988,2]
[385857724,1758063034305,-151.0,0.00019988,2]
[385857725,1758063034316,-151.0,0.00019988,2]
[385857726,1758063034326,-500.0,0.00019988,2]
[385857727,1758063034336,-151.0,0.00019988,2]
[385857728,1758063034346,-151.0,0.00019988,2]
[385857729,1758063034356,-151.0,0.00019988,2]
[385857730,1758063034365,-151.0,0.00019988,2]
[385857731,1758063034375,-500.0,0.00019988,2]
[385857732,1758063034385,-500.0,0.00019988,2]
[385857733,1758063034394,-500.0,0.00019988,2]
[385857734,1758063034404,-500.0,0.00019988,2]
[385857735,1758063034414,-500.0,0.00019988,2]
[385857736,1758063034427,-647.3,0.00019988,2]
[385857737,1758063034437,-151.0,0.00019997,2]
[385857738,1758063034447,-151.0,0.00019997,2]
[385857739,1758063034457,-3017.5555633,0.00019998,2]
[385857740,1758063034468,-92407.1056892,0.00019998,2]
[385857741,1758063034477,-3055.38481087,0.00019999,7]
[385857742,1758063034487,-426286.67702279,0.00019999,2]
[385857743,1758063034694,-323.79248041,0.00019786,2]
[385857744,1758063038073,-176.20751959,0.00019786,2]
[385857746,1758063038102,-251.79400954,0.00019786,2]
[385857821,1758063039447,-248.20599046,0.00019786,2]
[385857825,1758063039475,-41.71199745,0.00019786,2]
[385857937,1758063040673,-458.28800255,0.00019786,2]
[385857939,1758063040682,-500.0,0.00019786,2]
[385857941,1758063040691,-444.40191501,0.00019786,2]
[385857943,1758063040701,-558.39525716,0.00019787,2]
[385857953,1758063040792,-270.444,0.00019787,2]
[385858084,1758063042154,-15.00816324,0.00019787,2]
[385858086,1758063042164,-20347.44183676,0.00019999,2]
[385858190,1758063043433,-906.26536,0.00019999,2]
[385858193,1758063043875,-56141.27823822,0.00019999,2]
[385858194,1758063043887,-10516.37086451,0.0002,2]
[385858195,1758063043899,-25186.3396482,0.0002,2]
[385858201,1758063065976,-188.78685868,0.00019786,2]
[385858202,1758063068050,-239.21467045,0.00019786,2]
[385858203,1758063068076,-199.77622209,0.00019786,2]
[385858204,1758063068674,875.883877,7.945e-05,2]
[385858205,1758063070004,-282.49660444,0.00019786,2]
[385858206,1758063070031,-134.64540332,0.00019786,2]
[385858207,1758063072655,-350.0,0.000195,2]
[385858208,1758063075963,-169.79967335,0.000195,2]
[385858209,1758063079462,-169.79967335,0.000195,2]
[385858210,1758063082351,-372.2777102,0.000195,2]
[385858211,1758063087119,-256.7977657,0.000195,2]
[385858212,1758063090674,-171.41397095,0.000195,2]
[385858213,1758063094535,-394.12388219,0.000195,2]
[385858214,1758063096883,-115.78732426,0.000195,2]
[385858215,1758063096906,-229.97718982,0.000196,2]
[385858216,1758063098840,-209.68353687,0.000196,2]
[385858217,1758063100904,-193.32676232,0.000196,2]
[385858218,1758063104660,-243.2022343,0.000196,2]
[385858219,1758063106611,-337.6622461,0.000196,2]
[385858220,1758063111493,-213.09003059,0.000196,2]
[385858221,1758063111519,-137.54541112,0.00019786,2]
[385858222,1758063111544,-252.24893563,0.00019786,2]
[385858223,1758063120967,-213.05831889,0.00019786,2]
[385858224,1758063125025,-300.0,0.00019785,2]
[385858225,1758063125052,-35.09050709,0.00019786,2]
[385858226,1758063132151,-123.2582783,0.00019786,2]
[385858227,1758063132176,-376.7417217,0.00019786,2]
[385858228,1758063134273,-62.24917084,0.00019786,2]
[385858229,1758063134300,-242.43463872,0.00019786,2]
[385858230,1758063134327,-45.31619044,0.00019786,2]
[385858231,1758063138037,-474.48348291,0.00019786,2]
[385858232,1758063138063,-24.56387667,0.00019786,2]
[385858233,1758063140654,-350.0,0.00019786,2]
[385858234,1758063143235,-125.43612333,0.00019786,2]
[385858235,1758063143479,-118.4072883,0.00019786,2]
[385858236,1758063146291,-381.5927117,0.00019786,2]
[385858237,1758063146317,-60.84192702,0.00019786,2]
[385858238,1758063149717,-393.31,0.00019786,2]
[385858239,1758063154669,326.57644364,0.00019785,2]
[385858240,1758063154703,43.52284429,0.00019785,2]
[385858241,1758063156573,-369.79967335,0.00019785,2]
[385858242,1758063160966,-86.67748236,0.00019785,2]
[385858243,1758063160991,-413.32251764,0.00019785,2]
[385858244,1758063166929,-9.31244773,0.00019785,2]
[385858245,1758063166954,-500.0,0.00019785,2]
[385858246,1758063166979,-140.68755227,0.00019785,2]
[385858247,1758063170049,-359.31244773,0.00019785,2]
[385858248,1758063170078,-140.68755227,0.00019785,2]
[385858249,1758063172508,-311.21314132,0.00019785,2]
[385858250,1758063175473,-48.09930641,0.00019785,2]
[385858251,1758063175502,-251.90069359,0.00019785,2]
[385858252,1758063181352,-172.07220493,0.00019785,2]
[385858253,1758063183771,-195.48893261,0.00019784,2]
[385858254,1758063186374,-104.51106739,0.00019784,2]